[Event "Jeux du Barreau 2019"]
[Site "Paris, France"]
[Date "2019.07.10"]
[Round "6.4"]
[White "Sainson, Michael"]
[Black "Gautier, Joel"]
[Result "0-1"]
[TimeControl "15+3"]
[WhiteElo "1584"]
[BlackElo "1975"]

1. e4 {[%clk 00:15:02]} {[%emt 00:00:03]} c5 {[%clk 00:15:05]} {[%emt
00:00:02]} 2. Nf3 {[%clk 00:15:04]} e6 {[%clk 00:15:07]} {[%emt 00:00:01]} 3.
d4 {[%clk 00:15:06]} cxd4 {[%emt 00:00:01]} 4. Nxd4 {[%emt 00:00:01]} a6 {[%clk
00:15:08]} 5. Nc3 {[%clk 00:15:06]} {[%emt 00:00:03]} Qc7 {[%clk 00:15:09]}
{[%emt 00:00:02]} 6. Be2 {[%clk 00:15:05]} {[%emt 00:00:03]} b5 {[%clk
00:14:53]} {[%emt 00:00:20]} 7. a3 {[%clk 00:15:01]} {[%emt 00:00:08]} Bb7
{[%clk 00:14:52]} {[%emt 00:00:03]} 8. O-O {[%clk 00:14:37]} {[%emt 00:00:26]}
Bc5 {[%clk 00:14:51]} {[%emt 00:00:04]} 9. Be3 {[%clk 00:14:06]} {[%emt
00:00:34]} Nf6 {[%clk 00:14:48]} {[%emt 00:00:06]} 10. Bd3 {[%clk 00:13:26]}
{[%emt 00:00:43]} h5 {[%clk 00:14:10]} {[%emt 00:00:41]} 11. f4 {[%clk
00:12:53]} {[%emt 00:00:35]} Ng4 {[%clk 00:14:05]} {[%emt 00:00:08]} 12. Qd2
{[%clk 00:11:53]} {[%emt 00:01:03]} Nc6 {[%clk 00:13:29]} {[%emt 00:00:40]} 13.
Nce2 {[%clk 00:11:04]} {[%emt 00:00:51]} e5 {[%clk 00:13:28]} {[%emt 00:00:04]}
14. fxe5 {[%clk 00:08:23]} {[%emt 00:02:44]} Qxe5 {[%clk 00:12:48]} {[%emt
00:00:43]} 15. Bf4 {[%clk 00:05:21]} {[%emt 00:03:05]} Bxd4+ {[%clk 00:12:15]}
{[%emt 00:00:36]} 16. Kh1 {[%clk 00:04:22]} {[%emt 00:01:02]} Qe7 {[%clk
00:11:46]} {[%emt 00:00:32]} 17. Nxd4 {[%clk 00:03:07]} {[%emt 00:01:18]} Nxd4
{[%clk 00:11:46]} {[%emt 00:00:03]} 18. h3 {[%clk 00:02:51]} {[%emt 00:00:19]}
Ne5 {[%clk 00:11:00]} {[%emt 00:00:49]} 19. Qc3 {[%clk 00:02:22]} {[%emt
00:00:32]} Ndc6 {[%clk 00:10:36]} {[%emt 00:00:27]} 20. Bxe5 {[%clk 00:01:33]}
{[%emt 00:00:51]} Qxe5 {[%clk 00:10:20]} {[%emt 00:00:19]} 21. Qb3 {[%clk
00:00:38]} {[%emt 00:00:58]} O-O {[%clk 00:10:09]} {[%emt 00:00:15]} 22. Rf5
{[%clk 00:00:38]} {[%emt 00:00:02]} Qe6 {[%clk 00:09:33]} {[%emt 00:00:39]} 23.
Qxe6 {[%clk 00:00:24]} {[%emt 00:00:18]} dxe6 {[%clk 00:09:05]} {[%emt
00:00:31]} 24. Rxh5 {[%clk 00:00:24]} {[%emt 00:00:02]} g6 {[%clk 00:09:04]}
{[%emt 00:00:04]} 25. Kg1 {[%clk 00:00:05]} e5 {[%clk 00:08:54]} {[%emt
00:00:35]} 26. Rh4 {[%clk 00:00:06]} Kg7 {[%clk 00:08:55]} {[%emt 00:00:05]} 27.
Rf1 0-1

[Event "Jeux du Barreau 2019"]
[Site "Paris, France"]
[Date "2019.07.10"]
[Round "6.5"]
[White "Spirta, Boris"]
[Black "Clair, Michael"]
[Result "1/2-1/2"]
[TimeControl "15+3"]
[WhiteElo "1811"]
[BlackElo "1726"]

1. e4 {[%clk 00:15:05]} {[%emt 00:01:02]} d6 {[%clk 00:15:06]} 2. d4 {[%clk
00:14:58]} {[%emt 00:00:10]} Nf6 {[%clk 00:15:08]} 3. Nc3 {[%clk 00:14:36]}
{[%emt 00:00:25]} e5 {[%clk 00:15:09]} {[%emt 00:00:02]} 4. dxe5 {[%clk
00:14:18]} {[%emt 00:00:22]} dxe5 {[%clk 00:15:10]} {[%emt 00:00:02]} 5. Qxd8+
Kxd8 {[%clk 00:15:11]} 6. f4 {[%clk 00:13:58]} {[%emt 00:00:17]} Bb4 {[%clk
00:13:34]} {[%emt 00:01:41]} 7. Bd3 {[%clk 00:10:02]} {[%emt 00:03:59]} Nc6
{[%clk 00:12:25]} {[%emt 00:01:13]} 8. fxe5 {[%clk 00:09:09]} {[%emt 00:00:56]}
Nxe5 {[%clk 00:12:02]} {[%emt 00:00:25]} 9. Bd2 {[%clk 00:08:07]} {[%emt
00:01:06]} Bg4 {[%clk 00:11:36]} {[%emt 00:00:29]} 10. h3 {[%clk 00:07:52]}
{[%emt 00:00:18]} Be6 {[%clk 00:10:44]} {[%emt 00:00:54]} 11. Nge2 {[%clk
00:07:03]} {[%emt 00:00:52]} Bc4 {[%clk 00:08:38]} {[%emt 00:02:10]} 12. Bxc4
{[%clk 00:05:57]} {[%emt 00:01:09]} Nxc4 {[%clk 00:08:39]} {[%emt 00:00:02]} 13.
O-O-O {[%clk 00:05:17]} {[%emt 00:00:43]} Nxd2 {[%clk 00:08:22]} {[%emt
00:00:20]} 14. Rxd2+ {[%emt 00:00:08]} Ke7 {[%emt 00:00:01]} 15. e5 {[%clk
00:04:26]} {[%emt 00:00:46]} Ne4 {[%clk 00:06:29]} {[%emt 00:01:56]} 16. Nxe4
{[%clk 00:03:14]} {[%emt 00:01:15]} Bxd2+ {[%clk 00:06:29]} {[%emt 00:00:02]}
17. Nxd2 {[%clk 00:03:16]} Rad8 {[%clk 00:06:04]} {[%emt 00:00:29]} 18. Nf3
{[%clk 00:02:42]} {[%emt 00:00:37]} Rd7 {[%clk 00:05:38]} {[%emt 00:00:30]} 19.
Rd1 {[%clk 00:02:38]} {[%emt 00:00:07]} Rhd8 {[%clk 00:05:28]} {[%emt
00:00:13]} 20. Rxd7+ {[%clk 00:02:38]} {[%emt 00:00:03]} Rxd7 {[%clk 00:05:29]}
{[%emt 00:00:02]} 21. b3 {[%clk 00:02:05]} {[%emt 00:00:36]} h6 {[%clk
00:04:50]} {[%emt 00:00:42]} 22. Kb2 {[%clk 00:01:57]} {[%emt 00:00:05]} c5
{[%clk 00:03:35]} {[%emt 00:01:23]} 23. Kc3 {[%clk 00:01:54]} {[%emt 00:00:06]}
Ke6 {[%clk 00:03:28]} {[%emt 00:00:10]} 24. Kc4 {[%clk 00:01:47]} {[%emt
00:00:10]} b6 {[%clk 00:03:24]} {[%emt 00:00:07]} 25. Kb5 {[%clk 00:01:35]}
{[%emt 00:00:15]} Kf5 {[%clk 00:02:33]} {[%emt 00:00:54]} 26. Kc6 {[%clk
00:01:29]} {[%emt 00:00:08]} Ke6 {[%clk 00:02:02]} {[%emt 00:00:35]} 27. Nf4
{[%emt 00:00:14]} Ke7 28. Nd5+ {[%emt 00:00:14]} Ke6 {[%emt 00:00:01]} 29. Nf4
{[%emt 00:00:13]} Ke7 {[%emt 00:00:01]} 1/2-1/2

[Event "Jeux du Barreau 2019"]
[Site "Paris, France"]
[Date "2019.07.10"]
[Round "6.6"]
[White "Leblic, Maximilien"]
[Black "Lepetit, Jean Pierre"]
[Result "1-0"]
[TimeControl "15+3"]
[WhiteElo "1289"]
[BlackElo "1078"]

1. e4 {[%clk 00:15:03]} {[%emt 00:17:53]} e5 {[%clk 00:15:05]} {[%emt
00:00:02]} 2. Nf3 {[%clk 00:15:05]} Nc6 {[%clk 00:15:06]} {[%emt 00:00:02]} 3.
Bb5 {[%clk 00:15:07]} {[%emt 00:00:01]} a6 {[%clk 00:15:07]} {[%emt 00:00:02]}
4. Ba4 {[%clk 00:15:10]} Nf6 {[%clk 00:15:08]} {[%emt 00:00:02]} 5. d3 {[%clk
00:15:11]} {[%emt 00:00:01]} Be7 {[%clk 00:15:06]} {[%emt 00:00:05]} 6. O-O
{[%clk 00:15:12]} {[%emt 00:00:02]} b5 {[%clk 00:15:06]} {[%emt 00:00:03]} 7.
Bb3 {[%clk 00:15:14]} {[%emt 00:00:01]} d6 {[%clk 00:15:07]} {[%emt 00:00:01]}
8. Bg5 {[%clk 00:15:14]} {[%emt 00:00:03]} O-O {[%clk 00:15:00]} {[%emt
00:00:11]} 9. Re1 {[%clk 00:15:13]} {[%emt 00:00:05]} Na5 {[%clk 00:14:40]}
{[%emt 00:00:23]} 10. c3 {[%clk 00:15:08]} {[%emt 00:00:08]} Bb7 {[%clk
00:14:20]} {[%emt 00:00:23]} 11. Bc2 {[%clk 00:15:00]} {[%emt 00:00:11]} h6
{[%clk 00:14:20]} {[%emt 00:00:02]} 12. Bh4 {[%clk 00:15:02]} c5 {[%clk
00:14:07]} {[%emt 00:00:17]} 13. Nbd2 {[%emt 00:00:12]} Nh5 {[%clk 00:13:32]}
{[%emt 00:00:37]} 14. Bxe7 {[%clk 00:14:12]} {[%emt 00:00:46]} Qxe7 {[%clk
00:13:32]} {[%emt 00:00:03]} 15. Nf1 {[%clk 00:14:10]} {[%emt 00:00:05]} Nf4
{[%clk 00:13:23]} {[%emt 00:00:12]} 16. Ng3 {[%clk 00:13:56]} {[%emt 00:00:17]}
Bc8 {[%clk 00:13:00]} {[%emt 00:00:26]} 17. a3 {[%clk 00:13:34]} {[%emt
00:00:25]} Bg4 {[%clk 00:12:54]} {[%emt 00:00:09]} 18. h3 {[%clk 00:13:31]}
{[%emt 00:00:05]} Be6 {[%clk 00:11:56]} {[%emt 00:01:02]} 19. b4 {[%clk
00:13:25]} {[%emt 00:00:09]} Nc6 {[%clk 00:11:28]} {[%emt 00:00:30]} 20. bxc5
{[%clk 00:12:42]} {[%emt 00:00:46]} dxc5 {[%clk 00:11:27]} {[%emt 00:00:04]} 21.
Qd2 {[%clk 00:11:29]} {[%emt 00:01:16]} Rad8 {[%clk 00:11:02]} {[%emt
00:00:28]} 22. Nxe5 {[%clk 00:10:46]} {[%emt 00:00:46]} Nxh3+ {[%clk 00:10:29]}
{[%emt 00:00:35]} 23. gxh3 {[%clk 00:10:28]} {[%emt 00:00:22]} Nxe5 {[%clk
00:10:29]} {[%emt 00:00:03]} 24. Kg2 {[%clk 00:09:37]} {[%emt 00:00:54]} g5
{[%clk 00:08:32]} {[%emt 00:02:00]} 25. d4 {[%clk 00:08:58]} {[%emt 00:00:42]}
Bxh3+ {[%clk 00:08:13]} {[%emt 00:00:21]} 26. Kxh3 {[%clk 00:08:20]} {[%emt
00:00:42]} g4+ {[%clk 00:08:15]} {[%emt 00:00:02]} 27. Kg2 {[%clk 00:08:08]}
{[%emt 00:00:14]} Qh4 {[%clk 00:08:13]} {[%emt 00:00:05]} 28. Rh1 {[%clk
00:07:23]} {[%emt 00:00:48]} Qf6 {[%clk 00:07:20]} {[%emt 00:00:56]} 29. Qxh6
{[%clk 00:07:05]} {[%emt 00:00:21]} Qf3+ {[%clk 00:07:20]} {[%emt 00:00:02]} 30.
Kf1 {[%clk 00:06:29]} {[%emt 00:00:39]} 1-0

[Event "Jeux du Barreau 2019"]
[Site "Paris, France"]
[Date "2019.07.10"]
[Round "6.7"]
[White "Constant, Arnaud"]
[Black "Lanoe-Campbell, Luca"]
[Result "0-1"]
[TimeControl "15+3"]
[WhiteElo "1399"]
[BlackElo "1379"]

1. e4 {[%clk 00:15:05]} {[%emt 00:00:14]} c6 {[%clk 00:15:03]} {[%emt
00:00:04]} 2. Nf3 {[%clk 00:15:07]} {[%emt 00:00:01]} d5 {[%clk 00:15:03]}
{[%emt 00:00:03]} 3. Nc3 {[%clk 00:15:07]} {[%emt 00:00:02]} d4 {[%clk
00:14:39]} {[%emt 00:00:28]} 4. Na4 {[%clk 00:14:54]} {[%emt 00:00:16]} b5
{[%clk 00:14:32]} {[%emt 00:00:09]} 5. Nc5 {[%clk 00:14:56]} e5 {[%clk
00:13:52]} {[%emt 00:00:45]} 6. Nxe5 {[%clk 00:14:48]} {[%emt 00:00:11]} Bxc5
{[%clk 00:13:46]} {[%emt 00:00:09]} 7. d3 {[%clk 00:14:43]} {[%emt 00:00:09]}
Nf6 {[%clk 00:12:16]} {[%emt 00:01:32]} 8. Be2 {[%clk 00:14:34]} {[%emt
00:00:12]} O-O {[%clk 00:12:07]} {[%emt 00:00:12]} 9. O-O {[%clk 00:14:10]}
{[%emt 00:00:27]} Nbd7 {[%clk 00:11:18]} {[%emt 00:00:52]} 10. Nf3 {[%clk
00:13:17]} {[%emt 00:00:56]} Bb6 {[%clk 00:10:51]} {[%emt 00:00:31]} 11. c3
{[%clk 00:12:57]} {[%emt 00:00:23]} c5 {[%clk 00:09:52]} {[%emt 00:01:00]} 12.
Bg5 {[%clk 00:12:29]} {[%emt 00:00:31]} Bc7 {[%clk 00:09:32]} {[%emt 00:00:24]}
13. cxd4 {[%clk 00:12:15]} {[%emt 00:00:16]} cxd4 {[%clk 00:09:06]} {[%emt
00:00:29]} 14. Nxd4 {[%clk 00:12:04]} {[%emt 00:00:15]} a6 {[%clk 00:08:42]}
{[%emt 00:00:28]} 15. Bf3 {[%clk 00:11:23]} {[%emt 00:00:43]} Ne5 {[%clk
00:06:49]} {[%emt 00:01:55]} 16. Be3 {[%clk 00:09:42]} {[%emt 00:01:45]} Qd6
{[%clk 00:06:37]} {[%emt 00:00:14]} 17. Rc1 {[%clk 00:09:22]} {[%emt 00:00:23]}
Nxf3+ {[%clk 00:06:10]} {[%emt 00:00:31]} 18. Qxf3 {[%clk 00:09:10]} {[%emt
00:00:16]} Qxh2# {[%clk 00:06:08]} {[%emt 00:00:04]} 0-1

[Event "Jeux du Barreau 2019"]
[Site "Paris, France"]
[Date "2019.07.10"]
[Round "6.8"]
[White "Beaulier, Benjamin"]
[Black "Danon, Agnes"]
[Result "1-0"]
[TimeControl "15+3"]
[WhiteElo "1658"]
[BlackElo "1199"]

1. e4 {[%clk 00:15:02]} {[%emt 00:00:37]} e5 {[%clk 00:15:05]} 2. f4 {[%clk
00:15:02]} {[%emt 00:00:05]} Nc6 {[%clk 00:14:58]} 3. Nf3 {[%clk 00:14:59]}
{[%emt 00:00:15]} d6 {[%clk 00:14:49]} {[%emt 00:00:12]} 4. Bc4 {[%clk
00:14:55]} {[%emt 00:00:06]} Nh6 {[%clk 00:14:32]} {[%emt 00:00:21]} 5. O-O
{[%clk 00:14:52]} {[%emt 00:00:06]} Be6 {[%clk 00:14:13]} {[%emt 00:00:22]} 6.
Bb5 {[%clk 00:14:29]} {[%emt 00:00:26]} Qd7 {[%emt 00:00:15]} 7. fxe5 {[%clk
00:14:24]} {[%emt 00:00:02]} a6 {[%clk 00:13:41]} {[%emt 00:00:29]} 8. Bxc6
{[%clk 00:13:32]} {[%emt 00:00:55]} Qxc6 {[%clk 00:13:29]} {[%emt 00:00:14]} 9.
Nc3 {[%clk 00:13:06]} {[%emt 00:00:29]} O-O-O {[%clk 00:12:45]} {[%emt
00:00:48]} 10. d4 {[%clk 00:12:47]} {[%emt 00:00:22]} Ng4 {[%clk 00:11:46]}
{[%emt 00:01:02]} 11. h3 {[%clk 00:12:29]} {[%emt 00:00:21]} Nh6 {[%clk
00:10:50]} {[%emt 00:00:59]} 12. Be3 {[%clk 00:12:11]} {[%emt 00:00:20]} f5
{[%clk 00:10:01]} {[%emt 00:00:52]} 13. d5 {[%clk 00:12:01]} {[%emt 00:00:13]}
Bxd5 {[%clk 00:09:03]} {[%emt 00:01:00]} 14. exd5 {[%clk 00:11:59]} {[%emt
00:00:05]} Qc4 {[%clk 00:08:37]} {[%emt 00:00:30]} 15. Qd4 {[%clk 00:11:33]}
{[%emt 00:00:29]} b5 {[%clk 00:08:03]} {[%emt 00:00:37]} 16. Qa7 {[%clk
00:11:19]} {[%emt 00:00:17]} f4 {[%clk 00:07:31]} {[%emt 00:00:36]} 17. Qxa6+
{[%clk 00:10:59]} {[%emt 00:00:23]} Kd7 {[%clk 00:07:14]} {[%emt 00:00:20]} 18.
Qc6+ {[%clk 00:09:48]} {[%emt 00:01:14]} Qxc6 {[%emt 00:00:12]} 19. dxc6+
{[%emt 00:00:02]} Kc8 {[%clk 00:05:52]} {[%emt 00:01:10]} 20. Bxf4 {[%clk
00:09:38]} {[%emt 00:00:12]} Be7 {[%clk 00:05:27]} {[%emt 00:00:29]} 21. Nxb5
{[%clk 00:09:27]} {[%emt 00:00:14]} Rhf8 {[%clk 00:05:05]} {[%emt 00:00:25]} 22.
Bh2 {[%clk 00:08:45]} {[%emt 00:00:44]} d5 {[%clk 00:04:16]} {[%emt 00:00:51]}
23. a4 {[%clk 00:07:52]} {[%emt 00:00:56]} Bc5+ {[%clk 00:03:50]} {[%emt
00:00:29]} 24. Kh1 {[%clk 00:07:50]} {[%emt 00:00:05]} Rf4 {[%clk 00:03:27]}
{[%emt 00:00:27]} 25. c3 {[%clk 00:07:24]} {[%emt 00:00:29]} Rdf8 {[%clk
00:03:17]} {[%emt 00:00:13]} 26. Bxf4 {[%clk 00:07:25]} {[%emt 00:00:02]} Rxf4
{[%clk 00:03:16]} {[%emt 00:00:04]} 27. b4 {[%clk 00:07:22]} {[%emt 00:00:06]}
Nf5 {[%clk 00:03:09]} {[%emt 00:00:10]} 28. Kh2 {[%clk 00:07:00]} {[%emt
00:00:25]} Rc4 {[%clk 00:02:01]} {[%emt 00:01:11]} 29. bxc5 {[%clk 00:06:53]}
{[%emt 00:00:10]} Rxc5 {[%emt 00:00:18]} 30. Nfd4 {[%emt 00:00:11]} Ne3 {[%clk
00:01:07]} {[%emt 00:00:29]} 31. Rf8# {[%clk 00:06:50]} {[%emt 00:00:05]} 1-0

[Event "Jeux du Barreau 2019"]
[Site "Paris, France"]
[Date "2019.07.10"]
[Round "6.9"]
[White "Mangenot, Valentin"]
[Black "Rabbe, Laurent"]
[Result "1-0"]
[TimeControl "15+3"]
[WhiteElo "1405"]
[BlackElo "1399"]

1. d4 {[%emt 00:00:02]} d5 {[%clk 00:14:58]} {[%emt 00:00:07]} 2. c4 {[%clk
00:15:07]} {[%emt 00:00:02]} e6 {[%clk 00:14:54]} {[%emt 00:00:07]} 3. Nc3
{[%clk 00:14:54]} {[%emt 00:00:15]} Nf6 {[%clk 00:14:47]} {[%emt 00:00:10]} 4.
Nf3 {[%clk 00:14:51]} {[%emt 00:00:07]} Nc6 {[%clk 00:14:44]} {[%emt 00:00:06]}
5. Bf4 {[%clk 00:14:40]} {[%emt 00:00:14]} Bb4 {[%clk 00:14:42]} {[%emt
00:00:05]} 6. a3 {[%clk 00:14:03]} {[%emt 00:00:40]} Ba5 {[%clk 00:14:42]}
{[%emt 00:00:04]} 7. b4 {[%clk 00:14:04]} {[%emt 00:00:02]} Bb6 {[%clk
00:14:21]} {[%emt 00:00:23]} 8. c5 {[%clk 00:14:04]} {[%emt 00:00:03]} Bxc5
{[%clk 00:14:07]} {[%emt 00:00:17]} 9. bxc5 {[%clk 00:13:37]} {[%emt 00:00:31]}
b6 {[%clk 00:13:52]} {[%emt 00:00:17]} 10. e3 {[%clk 00:13:35]} {[%emt
00:00:04]} O-O {[%clk 00:13:00]} {[%emt 00:00:56]} 11. Bd3 {[%clk 00:13:24]}
{[%emt 00:00:14]} bxc5 {[%clk 00:11:04]} {[%emt 00:01:59]} 12. dxc5 {[%clk
00:12:57]} {[%emt 00:00:30]} Ng4 {[%clk 00:10:42]} {[%emt 00:00:24]} 13. Nd4
{[%clk 00:11:19]} {[%emt 00:01:41]} Bd7 {[%clk 00:08:52]} {[%emt 00:01:53]} 14.
Nxc6 {[%clk 00:10:45]} {[%emt 00:00:38]} Bxc6 {[%clk 00:08:27]} {[%emt
00:00:27]} 15. Qxg4 {[%clk 00:10:44]} {[%emt 00:00:05]} Rb8 {[%clk 00:07:53]}
{[%emt 00:00:37]} 16. Bh6 {[%clk 00:10:12]} {[%emt 00:00:33]} Re8 {[%clk
00:07:25]} {[%emt 00:00:33]} 17. Qxg7# {[%clk 00:10:11]} 1-0

[Event "Jeux du Barreau 2019"]
[Site "Paris, France"]
[Date "2019.07.10"]
[Round "6.10"]
[White "Delage, Pierre Luc"]
[Black "De Vareilles-Sommier, Ferdinand"]
[Result "1-0"]
[TimeControl "15+3"]
[WhiteElo "1399"]
[BlackElo "1399"]

1. e4 {[%clk 00:15:03]} {[%emt 00:00:02]} c5 {[%clk 00:15:05]} {[%emt
00:00:02]} 2. Nf3 {[%clk 00:15:03]} {[%emt 00:00:03]} Nc6 {[%clk 00:15:07]}
{[%emt 00:00:02]} 3. d4 {[%clk 00:14:59]} {[%emt 00:00:06]} cxd4 {[%clk
00:15:08]} {[%emt 00:00:02]} 4. Nxd4 {[%emt 00:00:03]} g6 5. Nxc6 {[%clk
00:13:57]} {[%emt 00:01:04]} bxc6 {[%clk 00:15:12]} {[%emt 00:00:01]} 6. Bd3
{[%clk 00:13:46]} {[%emt 00:00:15]} Bg7 {[%clk 00:15:13]} {[%emt 00:00:02]} 7.
Bd2 {[%clk 00:13:35]} {[%emt 00:00:13]} Bxb2 {[%emt 00:00:07]} 8. Bc3 {[%clk
00:13:20]} {[%emt 00:00:15]} Bxa1 {[%clk 00:15:05]} {[%emt 00:00:08]} 9. Bxa1
{[%emt 00:00:12]} Nf6 {[%clk 00:14:12]} {[%emt 00:00:54]} 10. e5 {[%clk
00:13:02]} {[%emt 00:00:16]} Nd5 {[%clk 00:13:45]} {[%emt 00:00:30]} 11. e6
{[%clk 00:12:55]} {[%emt 00:00:10]} O-O {[%clk 00:12:43]} {[%emt 00:01:05]} 12.
exf7+ {[%clk 00:12:15]} {[%emt 00:00:43]} Rxf7 {[%clk 00:12:42]} {[%emt
00:00:05]} 13. Bc4 {[%clk 00:11:17]} {[%emt 00:01:01]} Qb6 {[%clk 00:11:06]}
{[%emt 00:01:39]} 14. O-O {[%clk 00:10:59]} {[%emt 00:00:20]} Bb7 {[%clk
00:09:57]} {[%emt 00:01:09]} 15. Nc3 {[%clk 00:09:48]} {[%emt 00:01:18]} e6
{[%clk 00:09:18]} {[%emt 00:00:42]} 16. Ne4 {[%clk 00:09:12]} {[%emt 00:00:39]}
Rf4 {[%clk 00:08:26]} {[%emt 00:00:55]} 17. Bd3 {[%clk 00:07:11]} {[%emt
00:02:05]} Ba6 {[%clk 00:06:13]} {[%emt 00:02:16]} 18. Bxa6 {[%clk 00:05:01]}
{[%emt 00:02:13]} Qxa6 {[%clk 00:06:14]} {[%emt 00:00:03]} 19. Qd4 {[%clk
00:04:53]} {[%emt 00:00:11]} Qb6 {[%clk 00:05:05]} {[%emt 00:01:12]} 20. Qd1
{[%emt 00:00:44]} Qa6 {[%emt 00:00:04]} 21. Qd4 {[%emt 00:00:01]} Nf6 {[%emt
00:00:18]} 22. Nxf6+ {[%emt 00:00:06]} 1-0

[Event "Jeux du Barreau 2019"]
[Site "Paris, France"]
[Date "2019.07.10"]
[Round "6.11"]
[White "Abulius, Thomas"]
[Black "Castel, David"]
[Result "1-0"]
[TimeControl "15+3"]
[WhiteElo "1390"]
[BlackElo "1366"]

1. d4 {[%clk 00:15:05]} h6 {[%clk 00:15:04]} {[%emt 00:00:03]} 2. c4 {[%clk
00:15:04]} {[%emt 00:00:03]} g6 {[%clk 00:15:05]} {[%emt 00:00:02]} 3. Nc3
{[%clk 00:15:05]} {[%emt 00:00:02]} f6 {[%clk 00:15:07]} {[%emt 00:00:02]} 4.
Nf3 {[%clk 00:15:02]} {[%emt 00:00:06]} Bg7 {[%clk 00:15:08]} {[%emt 00:00:02]}
5. Qc2 {[%clk 00:15:01]} {[%emt 00:00:04]} f5 {[%clk 00:15:07]} {[%emt
00:00:04]} 6. g4 {[%clk 00:15:00]} {[%emt 00:00:03]} e6 {[%clk 00:15:08]}
{[%emt 00:00:03]} 7. Ne5 {[%clk 00:14:58]} {[%emt 00:00:05]} Ne7 {[%clk
00:14:49]} {[%emt 00:00:21]} 8. gxf5 {[%clk 00:14:52]} {[%emt 00:00:10]} Bxe5
{[%clk 00:14:30]} {[%emt 00:00:22]} 9. dxe5 {[%clk 00:14:53]} {[%emt 00:00:02]}
exf5 {[%clk 00:14:25]} {[%emt 00:00:08]} 10. f4 {[%clk 00:14:08]} {[%emt
00:00:48]} d6 {[%clk 00:14:19]} {[%emt 00:00:09]} 11. exd6 {[%clk 00:13:44]}
{[%emt 00:00:27]} cxd6 {[%clk 00:14:21]} {[%emt 00:00:02]} 12. e4 {[%clk
00:13:13]} {[%emt 00:00:34]} Nbc6 {[%clk 00:14:23]} {[%emt 00:00:02]} 13. Be3
{[%clk 00:13:03]} {[%emt 00:00:12]} Bd7 {[%clk 00:14:24]} {[%emt 00:00:02]} 14.
O-O-O {[%clk 00:12:58]} {[%emt 00:00:07]} Qa5 {[%clk 00:14:08]} {[%emt
00:00:20]} 15. Rxd6 {[%clk 00:11:50]} {[%emt 00:01:11]} Nb4 {[%clk 00:14:10]}
{[%emt 00:00:01]} 16. Qb3 {[%clk 00:11:52]} {[%emt 00:00:01]} O-O-O {[%clk
00:13:20]} {[%emt 00:00:52]} 17. e5 {[%clk 00:11:36]} {[%emt 00:00:19]} Bc6
{[%clk 00:12:53]} {[%emt 00:00:31]} 18. Rg1 {[%clk 00:11:05]} {[%emt 00:00:33]}
Rxd6 {[%clk 00:12:50]} {[%emt 00:00:07]} 19. exd6 {[%clk 00:11:06]} {[%emt
00:00:02]} Ng8 {[%clk 00:11:21]} {[%emt 00:01:32]} 20. a3 {[%emt 00:00:40]} Na6
{[%clk 00:10:46]} {[%emt 00:00:36]} 21. Rxg6 {[%clk 00:10:01]} {[%emt
00:00:33]} Nc5 {[%clk 00:10:23]} {[%emt 00:00:26]} 22. Qb4 {[%clk 00:09:17]}
{[%emt 00:00:46]} Qxb4 23. axb4 Ne4 {[%clk 00:10:10]} {[%emt 00:00:02]} 24.
Nxe4 {[%clk 00:08:52]} {[%emt 00:00:27]} Bxe4 {[%clk 00:10:12]} {[%emt
00:00:01]} 25. Bxa7 {[%clk 00:08:47]} {[%emt 00:00:09]} Kd7 {[%clk 00:10:14]}
26. c5 {[%clk 00:08:42]} {[%emt 00:00:08]} h5 {[%clk 00:10:10]} {[%emt
00:00:07]} 27. Bb5+ {[%clk 00:08:42]} {[%emt 00:00:02]} Kc8 {[%clk 00:09:58]}
{[%emt 00:00:15]} 28. d7+ {[%clk 00:08:32]} {[%emt 00:00:13]} Kc7 {[%clk
00:09:53]} {[%emt 00:00:08]} 29. Bb6+ {[%clk 00:08:33]} {[%emt 00:00:02]} Kb8
{[%clk 00:09:50]} {[%emt 00:00:06]} 30. d8=R# {[%emt 00:00:07]} 1-0